bitfinex/quotes_SOLUSD_20251019
["timestamp","ask_amount","ask_price","bid_price","bid_amount"]
[1760908245318,0.2,189.75,189.74,2.08433915]
[1760908245513,0.2,189.75,189.74,2.77433915]
[1760908246214,0.2,189.75,189.74,8.04470912]
[1760908247028,0.2,189.75,189.74,5.27036997]
[1760908248528,0.91,189.75,189.73,5.27064776]
[1760908249417,0.2,189.75,189.72,18.44787787]
[1760908249616,0.71,189.74,189.72,18.44787787]
[1760908250306,0.71,189.74,189.72,80.24787787]
[1760908251632,2.79433915,189.73,189.72,61.8]
[1760908251815,2.79433915,189.73,189.68,5.27203711]
[1760908252019,2.08433915,189.7,189.68,5.96203711]
[1760908252221,2.08433915,189.71,189.68,5.96203711]
[1760908252732,3.25629926,189.71,189.68,5.96203711]
[1760908253044,3.96629926,189.71,189.68,5.27203711]
[1760908253929,3.25629926,189.71,189.68,18.45212989]
[1760908254229,3.25629926,189.72,189.69,0.69]
[1760908254436,3.96629926,189.73,189.69,0.69]
[1760908254637,0.71,189.72,189.68,18.45212989]
[1760908254932,0.71,189.72,189.68,19.14212989]
[1760908255912,3.96629926,189.72,189.68,19.14212989]
[1760908256325,3.96629926,189.72,189.68,80.94212989]
[1760908258061,0.71,189.72,189.68,80.94212989]
[1760908258735,0.2,189.75,189.69,0.69]
[1760908258946,0.2,189.75,189.71,3.25629926]
[1760908259145,0.71,189.74,189.7,3.25629926]
[1760908259329,0.71,189.74,189.7,0.69]
[1760908259516,0.71,189.74,189.7,3.94629926]
[1760908260242,0.71,189.74,189.71,5.27120341]
[1760908260550,0.71,189.73,189.71,5.27120341]
[1760908260852,3.25629926,189.74,189.71,5.27120341]
[1760908261016,3.96629926,189.74,189.71,5.27120341]
[1760908261434,3.96629926,189.74,189.7,5.27148128]
[1760908261617,0.71,189.74,189.7,5.27148128]
[1760908262044,0.71,189.74,189.7,5.96148128]
[1760908262231,0.71,189.74,189.7,19.14018449]
[1760908262552,0.2,189.75,189.71,0.69]
[1760908262729,0.2,189.75,189.72,3.25629926]
[1760908262930,0.2,189.75,189.73,3.94629926]
[1760908263155,0.2,189.75,189.74,3.25629926]
[1760908263355,0.2,189.75,189.74,9.21666923]
[1760908263550,0.2,189.75,189.74,8.52666923]
[1760908263751,0.2,189.75,189.74,9.21666923]
[1760908263957,0.2,189.75,189.74,5.96036997]
[1760908264460,0.2,189.75,189.74,5.27036997]
[1760908264759,0.2,189.75,189.74,67.07036997]
[1760908267358,0.2,189.75,189.74,67.76036997]
[1760908267553,0.2,189.75,189.74,67.07036997]
[1760908270338,0.91,189.75,189.74,67.07036997]
[1760908271761,0.2,189.75,189.74,67.07036997]
[1760908273859,4.14629926,189.75,189.7,67.07147326]
[1760908274064,0.7,189.74,189.7,80.25017647]
[1760908274260,0.7,189.73,189.7,80.25017647]
[1760908274566,3.25629926,189.74,189.7,80.95017647]
[1760908274758,3.95629926,189.74,189.7,80.95017647]
[1760908275063,3.25629926,189.74,189.7,80.25017647]
[1760908275375,0.7,189.73,189.7,80.25017647]
[1760908276670,3.95629926,189.73,189.7,80.25017647]
[1760908279776,23.08,189.75,189.7,80.25017647]
[1760908279964,3.25629926,189.73,189.7,80.95017647]
[1760908281675,0.2,189.75,189.71,0.7]
[1760908281880,0.2,189.75,189.74,3.25629926]
[1760908282172,0.2,189.75,189.74,0.7]
[1760908282976,0.2,189.75,189.74,5.97036997]
[1760908283175,0.2,189.75,189.74,9.22666923]
[1760908285367,1e-08,189.75,189.74,9.22666923]
[1760908287878,1e-08,189.75,189.74,28.85036997]
[1760908288180,1e-08,189.75,189.74,32.10666923]
[1760908288569,0.2,189.77,189.75,61.79999999]
[1760908288758,0.2,189.77,189.75,98.59999999]
[1760908289780,0.2,189.77,189.76,5.2698145]
[1760908294480,0.9,189.77,189.76,67.06981449]
[1760908296463,4.15629926,189.77,189.76,61.79999999]
[1760908296871,4.15629926,189.77,189.72,5.27085917]
[1760908297168,3.25629926,189.73,189.72,5.27085917]
[1760908297477,3.95629926,189.73,189.72,5.27085917]
[1760908300101,3.95629926,189.73,189.7,5.27147101]
[1760908300412,3.25629926,189.71,189.67,61.79999999]
[1760908300706,3.25629926,189.69,189.67,61.79999999]
[1760908300996,3.95629926,189.68,189.61,0.7]
[1760908301198,3.25629926,189.65,189.61,0.7]
[1760908301500,0.7,189.65,189.61,0.7]
[1760908301896,0.7,189.64,189.59,37.5]
[1760908302071,3.25629926,189.62,189.58,13.18671982]
[1760908302274,3.25629926,189.64,189.58,13.18671982]
[1760908302488,0.7,189.64,189.6,5.2742616]
[1760908302688,3.25629926,189.65,189.6,5.2742616]
[1760908302886,0.7,189.63,189.6,18.4599156]
[1760908303113,0.7,189.65,189.6,18.4599156]
[1760908303301,0.7,189.64,189.6,18.4599156]
[1760908304199,0.66,189.63,189.6,18.4599156]
[1760908306299,0.66,189.62,189.6,61.8]
[1760908306689,23.54,189.64,189.6,67.0742557]
[1760908306879,0.66,189.67,189.61,3.91629926]
[1760908307194,0.66,189.68,189.62,3.91629926]
[1760908307392,0.66,189.67,189.6,22.37620896]
[1760908307703,0.66,189.66,189.61,0.66]
[1760908308203,0.66,189.66,189.62,5.2737053]
[1760908310221,0.66,189.66,189.59,98.62]
[1760908310386,3.91629926,189.65,189.6,5.27413423]
[1760908310581,3.25629926,189.66,189.61,0.66]
[1760908310888,0.66,189.65,189.6,5.93413423]
[1760908311595,3.91629926,189.65,189.6,5.93413423]
[1760908313708,0.66,189.65,189.6,5.93413423]
[1760908314611,0.66,189.64,189.56,22.88]
[1760908314907,2.74597389,189.64,189.57,2.74597389]
[1760908315086,22.88,189.65,189.59,2.08597389]
[1760908315289,2.74597389,189.66,189.6,0.66]
[1760908315704,2.08597389,189.65,189.6,0.66]
[1760908315896,2.08597389,189.64,189.61,5.27398343]
[1760908316096,0.66,189.63,189.61,67.07398343]
[1760908316597,2.74597389,189.62,189.61,67.07398343]
[1760908318306,2.08597389,189.62,189.61,67.07398343]
[1760908318614,2.08597389,189.63,189.61,67.07398343]
[1760908318787,2.74597389,189.63,189.61,67.07398343]
[1760908319498,2.74597389,189.62,189.61,61.8]
[1760908319891,2.08597389,189.62,189.61,61.8]
[1760908320093,2.74597389,189.62,189.61,61.8]
[1760908320299,2.74597389,189.62,189.57,5.27500477]
[1760908320505,0.66,189.61,189.57,67.07500477]
[1760908320710,2.74597389,189.6,189.57,67.07500477]
[1760908320912,0.66,189.6,189.57,67.07500477]
[1760908323100,22.88,189.63,189.54,2.18597389]
[1760908323101,2.08597389,189.58,189.54,0.1]
[1760908323300,2.08597389,189.57,189.54,0.1]
[1760908323611,2.74597389,189.57,189.54,0.1]
[1760908324199,2.74597389,189.57,189.55,5.27563893]
[1760908324914,0.66,189.57,189.55,5.27563893]
[1760908326237,2.74597389,189.56,189.54,0.1]
[1760908326401,24.96597389,189.59,189.55,0.66]
[1760908326599,23.54,189.59,189.55,0.66]
[1760908327119,0.66,189.59,189.55,0.66]
[1760908328528,13.18141762,189.67,189.56,5.27537455]
[1760908328821,0.66,189.61,189.56,67.73537455]
[1760908329013,0.66,189.61,189.57,0.66]
[1760908329922,0.66,189.61,189.58,5.27481801]
[1760908330730,2.74597389,189.66,189.59,2.74597389]
[1760908330905,0.66,189.65,189.59,64.54597389]
[1760908331224,23.54,189.65,189.59,64.54597389]
[1760908331403,0.66,189.65,189.59,64.54597389]
[1760908331603,23.54,189.65,189.59,64.54597389]
[1760908331810,0.66,189.65,189.6,5.2742616]
[1760908332013,0.67,189.64,189.6,5.9442616]
[1760908332616,0.67,189.64,189.6,8.03023549]
[1760908332826,0.67,189.65,189.6,8.03023549]
[1760908333413,0.67,189.64,189.6,8.03023549]
[1760908333816,28.15231899,189.67,189.6,8.03023549]
[1760908334132,0.72,189.66,189.6,8.03023549]
[1760908334427,2.08597389,189.68,189.61,2.08597389]
[1760908334606,18.23394863,189.7,189.62,0.66]
[1760908334811,0.72,189.69,189.62,62.46]
[1760908335025,0.72,189.69,189.63,0.66]
[1760908335226,16.14628971,189.76,189.63,62.46]
[1760908335424,16.14628971,189.76,189.57,127.18]
[1760908335425,2.08597389,189.64,189.57,59.74]
[1760908335637,24.96597389,189.58,189.54,0.1]
[1760908335829,10.87647521,189.61,189.49,0.1]
[1760908335830,10.87647521,189.54,189.49,0.1]
[1760908336025,2.08597389,189.52,189.49,0.1]
[1760908336228,2.80597389,189.52,189.49,0.1]
[1760908338744,8.08246185,189.52,189.49,0.1]
[1760908340742,2.80597389,189.52,189.49,0.1]
[1760908343033,2.08597389,189.55,189.51,7.1967372]
[1760908343226,22.88,189.54,189.51,7.1967372]
[1760908344032,2.08597389,189.55,189.51,7.1967372]
[1760908344222,22.88,189.54,189.51,7.1967372]
[1760908345824,24.96597389,189.54,189.51,7.1967372]
[1760908346051,24.96597389,189.54,189.51,6.5367372]
[1760908346438,24.96597389,189.54,189.47,2.08597389]
[1760908346635,24.96597389,189.54,189.47,63.88597389]
[1760908346940,2.08597389,189.52,189.47,61.8]
[1760908347425,2.08597389,189.52,189.47,80.27252865]
[1760908348541,2.08597389,189.52,189.49,5.27732334]
[1760908349044,24.96597389,189.53,189.49,5.27732334]
[1760908349523,22.88,189.53,189.49,5.27732334]
[1760908350341,22.88,189.53,189.49,171.37732334]
[1760908350725,22.88,189.54,189.5,0.26]
[1760908350925,22.88,189.54,189.51,0.26]
[1760908351121,2.08597389,189.56,189.51,62.06]
[1760908352146,2.80597389,189.56,189.51,62.06]
[1760908352343,22.88,189.55,189.52,5.27648796]
[1760908355544,0.72,189.56,189.52,67.07648796]
[1760908356843,0.72,189.56,189.52,67.33648796]
[1760908357751,24.96597389,189.57,189.52,67.07648796]
[1760908357929,24.96597389,189.57,189.53,0.26]
[1760908358128,23.6,189.57,189.52,67.07648796]
[1760908358344,22.88,189.57,189.52,67.07648796]
[1760908358545,0.72,189.56,189.52,67.07648796]
[1760908359055,22.88,189.57,189.52,171.63648796]
[1760908359229,23.6,189.57,189.52,171.63648796]
[1760908359553,22.88,189.57,189.53,0.26]
[1760908359738,22.88,189.57,189.54,0.26]
[1760908360154,22.88,189.57,189.52,173.72246185]
[1760908360328,2.80597389,189.59,189.53,0.26]
[1760908360527,2.80597389,189.59,189.53,166.36]
[1760908360828,0.72,189.59,189.54,5.2759312]
[1760908361047,0.72,189.58,189.54,5.2759312]
[1760908362756,0.72,189.57,189.53,166.1]
[1760908362952,2.08597389,189.58,189.53,171.63618572]
[1760908363166,2.80597389,189.58,189.53,171.63618572]
[1760908363354,0.72,189.57,189.53,171.37618572]
[1760908364841,0.72,189.57,189.53,171.63618572]
[1760908365334,22.88,189.56,189.53,171.37618572]
[1760908365736,23.6,189.56,189.53,171.37618572]
[1760908365937,2.08597389,189.54,189.53,166.1]
[1760908366161,2.08597389,189.54,189.53,61.8]
[1760908366361,2.80597389,189.54,189.53,61.8]
[1760908368039,0.72,189.54,189.53,61.8]
[1760908370566,2.80597389,189.54,189.53,61.8]
[1760908371364,25.68597389,189.54,189.53,61.8]
[1760908372167,25.68597389,189.54,189.49,5.27732334]
[1760908372346,2.08597389,189.52,189.49,5.27732334]
[1760908372548,2.80597389,189.52,189.49,5.27732334]
[1760908373270,2.80597389,189.52,189.48,13.193399]
[1760908373473,0.72,189.52,189.48,13.193399]
[1760908373769,2.80597389,189.52,189.48,13.193399]
[1760908374673,3.98267008,189.52,189.48,13.193399]
[1760908376379,3.26267008,189.49,189.48,61.8]
[1760908376560,3.26267008,189.5,189.48,61.8]
[1760908376776,3.98267008,189.49,189.46,61.9]
[1760908377073,3.26267008,189.47,189.46,61.9]
[1760908377278,3.98267008,189.47,189.46,0.1]
[1760908378190,26.86267008,189.47,189.46,0.1]
[1760908378759,3.98267008,189.47,189.46,0.1]
[1760908379366,20.13702569,189.47,189.46,0.1]
[1760908379564,10.87647521,189.45,189.44,0.1]
[1760908379853,17.40181537,189.45,189.44,0.1]
[1760908380061,18.12181537,189.45,189.44,0.1]
[1760908380263,3.98267008,189.45,189.44,0.1]
[1760908380456,30.12534016,189.45,189.44,0.1]
[1760908380955,41.00181537,189.45,189.44,0.1]
[1760908381161,34.47647521,189.45,189.44,0.1]
[1760908381476,41.00181537,189.45,189.44,0.1]
[1760908384862,37.73914529,189.45,189.44,0.1]
[1760908387780,3.26267008,189.45,189.44,0.1]
[1760908389090,3.26267008,189.46,189.44,0.1]
[1760908389795,3.26267008,189.47,189.44,0.1]
[1760908391056,3.26267008,189.47,189.44,5.73870844]
[1760908391261,3.26267008,189.47,189.44,5.37870844]
[1760908391562,3.26267008,189.46,189.44,0.1]
[1760908392268,0.69,189.46,189.45,3.26267008]
[1760908392586,22.88,189.48,189.45,3.26267008]
[1760908392785,0.69,189.47,189.45,3.26267008]
[1760908393288,22.88,189.48,189.44,0.1]
[1760908393484,0.69,189.46,189.44,0.1]
[1760908393675,0.69,189.45,189.44,0.1]
[1760908394790,23.57,189.45,189.44,0.1]
[1760908395283,34.44647521,189.45,189.44,0.1]
[1760908395672,23.57,189.45,189.44,0.1]
[1760908395879,0.69,189.45,189.44,0.1]
[1760908400587,34.45647521,189.47,189.44,0.1]
[1760908400774,0.7,189.49,189.46,3.26267008]
[1760908400976,0.7,189.48,189.45,3.26267008]
[1760908401302,0.7,189.47,189.45,3.26267008]
[1760908402102,22.88,189.49,189.46,3.26267008]
[1760908402301,0.7,189.54,189.48,3.26267008]
[1760908402498,0.7,189.53,189.52,3.26267008]
[1760908403677,22.88,189.54,189.52,3.26267008]
[1760908403885,23.58,189.54,189.53,3.26267008]
[1760908404474,22.88,189.54,189.53,3.26267008]
[1760908405593,23.58,189.54,189.53,3.26267008]
[1760908406502,23.58,189.54,189.51,3.26267008]
[1760908406673,0.7,189.53,189.5,65.06267008]
[1760908407185,0.7,189.52,189.5,65.06267008]
[1760908408393,0.7,189.52,189.5,61.8]
[1760908408566,0.7,189.51,189.5,61.8]
[1760908411791,0.7,189.51,189.49,65.06267008]
[1760908413417,0.7,189.51,189.5,3.26267008]
[1760908414127,0.7,189.51,189.47,5.27785687]
[1760908414128,23.58,189.51,189.48,3.26267008]
[1760908414416,22.88,189.48,189.47,61.8]
[1760908414616,23.58,189.48,189.47,61.8]
[1760908414913,0.7,189.48,189.47,61.8]
[1760908418419,0.7,189.49,189.47,61.8]
[1760908419620,11.57647521,189.48,189.45,61.8]
[1760908419818,0.7,189.47,189.45,61.8]
[1760908420020,0.7,189.46,189.44,61.9]
[1760908421812,0.7,189.46,189.44,0.1]
[1760908422915,22.88,189.45,189.44,0.1]
[1760908423123,23.58,189.45,189.44,0.1]
[1760908425107,34.45647521,189.45,189.44,0.1]
[1760908425297,37.71914529,189.45,189.44,0.1]
[1760908426523,42.99758287,189.45,189.44,0.1]
[1760908427221,37.71914529,189.45,189.44,0.1]
[1760908427822,22.88,189.45,189.44,0.1]
[1760908428198,23.55,189.45,189.44,0.1]
[1760908429707,22.88,189.45,189.44,0.46]
[1760908429906,10.87647521,189.47,189.44,3.36267008]
[1760908430105,11.54647521,189.47,189.44,3.36267008]
[1760908430409,22.88,189.45,189.44,3.36267008]
[1760908430839,22.88,189.45,189.44,0.1]
[1760908431006,22.88,189.45,189.44,3.36267008]
[1760908431325,22.88,189.45,189.44,0.1]
[1760908432230,3.26267008,189.5,189.44,0.1]
[1760908432231,0.67,189.5,189.44,3.72267008]
[1760908432407,0.67,189.5,189.49,3.26267008]
[1760908432828,11.54647521,189.5,189.49,3.26267008]
[1760908433446,0.67,189.5,189.49,3.26267008]
[1760908435319,23.55,189.51,189.49,3.26267008]
[1760908435516,11.54647521,189.5,189.37,0.1]
[1760908435720,33.75647521,189.43,189.39,3.26267008]
[1760908436140,34.42647521,189.43,189.4,3.26267008]
[1760908436346,34.42647521,189.43,189.39,3.26267008]
[1760908436347,33.75647521,189.43,189.39,3.26267008]
[1760908436731,33.75647521,189.43,189.39,2.09001581]
[1760908436944,34.42647521,189.43,189.39,2.09001581]
[1760908437922,39.70547008,189.43,189.39,2.09001581]
[1760908438736,33.75647521,189.43,189.4,0.67]
[1760908439041,33.75647521,189.43,189.39,2.09001581]
[1760908440146,33.75647521,189.43,189.38,2.76001581]
[1760908440442,39.70547008,189.43,189.38,2.09001581]
[1760908440650,39.70547008,189.43,189.38,63.89001581]
[1760908441148,39.70547008,189.43,189.38,61.8]
[1760908441447,41.79548589,189.43,189.38,61.8]
[1760908442143,39.70547008,189.43,189.38,63.89001581]
[1760908445239,33.75647521,189.43,189.4,2.09001581]
[1760908445544,41.79548589,189.43,189.38,61.8]
[1760908446426,41.79548589,189.43,189.37,0.1]
[1760908447460,34.42647521,189.43,189.37,0.1]
[1760908447622,34.42647521,189.43,189.39,0.67]
[1760908447819,5.27757433,189.49,189.41,2.09001581]
[1760908448024,22.88,189.43,189.42,2.19001581]
[1760908448273,22.88,189.43,189.42,0.1]
[1760908448626,22.88,189.43,189.42,2.19001581]
[1760908449842,22.88,189.43,189.42,0.1]
[1760908450549,22.88,189.43,189.42,2.19001581]
[1760908454640,22.88,189.43,189.42,0.1]
[1760908456542,34.42647521,189.43,189.42,0.1]
[1760908459765,33.75647521,189.43,189.42,0.1]
[1760908461664,34.42647521,189.43,189.42,0.1]
[1760908463975,36.51649102,189.43,189.42,0.1]
[1760908464674,18.91548589,189.43,189.42,0.1]
[1760908467377,16.82547008,189.43,189.42,0.1]
[1760908467678,18.91548589,189.43,189.42,0.1]
[1760908474871,10.87647521,189.39,189.35,0.38998998]
[1760908475176,12.96649102,189.39,189.33,67.08173587]
[1760908475787,10.87647521,189.39,189.33,69.17175168]
[1760908475983,10.87647521,189.39,189.33,67.08173587]
[1760908476275,10.87647521,189.39,189.33,69.17175168]
[1760908477567,10.87647521,189.39,189.33,7.37175168]
[1760908478460,10.87647521,189.39,189.33,5.28173587]
[1760908478667,10.87647521,189.39,189.33,7.37175168]
[1760908478954,10.87647521,189.39,189.33,5.28173587]
[1760908479271,22.88,189.36,189.32,0.1]
[1760908480375,22.88,189.36,189.32,5.3819159]
[1760908480958,22.88,189.36,189.32,7.47193171]
[1760908481467,10.87647521,189.35,189.32,0.1]
[1760908481777,22.88,189.34,189.32,0.1]
[1760908484982,22.88,189.34,189.32,61.9]
[1760908488690,22.88,189.34,189.32,0.1]
[1760908493897,22.88,189.34,189.32,61.9]
[1760908494406,22.88,189.34,189.32,0.1]
[1760908498614,10.87647521,189.37,189.32,0.1]
[1760908498893,22.88,189.34,189.32,8.65093869]
[1760908499094,22.88,189.34,189.32,3.36893115]
[1760908499298,22.88,189.34,189.32,65.16893115]
[1760908499687,22.88,189.34,189.32,61.9]
[1760908499993,22.88,189.34,189.32,62.56]
[1760908501405,22.88,189.34,189.32,61.9]
[1760908502502,14.80540636,189.37,189.32,62.56]
[1760908502802,11.53647521,189.37,189.32,62.56]
[1760908503003,14.80540636,189.37,189.32,0.76]
[1760908503580,11.53647521,189.37,189.32,0.76]
[1760908503805,14.80540636,189.37,189.32,0.1]
[1760908504007,3.26893115,189.36,189.32,0.1]
[1760908504510,3.92893115,189.36,189.32,0.76]
[1760908505696,0.66,189.35,189.32,0.1]
[1760908506590,0.66,189.38,189.33,0.66]
[1760908506902,0.66,189.44,189.37,3.26893115]
[1760908507206,0.66,189.46,189.42,3.26893115]
[1760908507515,0.66,189.45,189.42,3.26893115]
[1760908507682,10.87647521,189.47,189.42,3.92893115]
[1760908507885,5.27754497,189.49,189.45,3.26893115]
[1760908507886,0.66,189.49,189.45,3.26893115]
[1760908508500,11.53647521,189.49,189.45,3.92893115]
[1760908508695,10.87647521,189.49,189.45,3.26893115]
[1760908508985,0.66,189.48,189.44,3.26893115]
[1760908509193,3.92893115,189.47,189.41,0.66]
[1760908509504,3.92893115,189.47,189.4,3.92893115]
[1760908509505,3.26893115,189.46,189.4,3.92893115]
[1760908509809,3.92893115,189.46,189.4,3.92893115]
[1760908511008,3.26893115,189.44,189.4,0.66]
[1760908511184,28.15829909,189.46,189.36,5.28093102]
[1760908511387,22.88,189.46,189.42,3.26893115]
[1760908511719,22.88,189.46,189.43,0.67]
[1760908512011,22.88,189.46,189.41,3.26893115]
[1760908512182,22.88,189.46,189.38,0.67]
[1760908512183,3.26893115,189.43,189.38,0.67]
[1760908512384,3.26893115,189.39,189.34,0.67]
[1760908512621,3.26893115,189.4,189.35,0.67]
[1760908512785,3.93893115,189.4,189.35,0.67]
[1760908512991,3.93893115,189.4,189.36,0.67]
[1760908513595,3.26893115,189.4,189.36,0.67]
[1760908513999,0.72,189.4,189.36,0.67]
[1760908514314,3.26893115,189.39,189.35,61.8]
[1760908514687,0.72,189.38,189.35,61.8]
[1760908514910,3.26893115,189.39,189.35,61.8]
[1760908515101,3.98893115,189.39,189.35,61.8]
[1760908515510,3.98893115,189.39,189.35,62.51]
[1760908515689,3.98893115,189.38,189.32,0.81]
[1760908515888,3.26893115,189.35,189.32,0.1]
[1760908516118,3.26893115,189.34,189.32,0.1]
[1760908516302,3.98893115,189.34,189.32,0.1]
[1760908516492,0.72,189.33,189.32,0.1]
[1760908516804,26.14893115,189.35,189.32,0.1]
[1760908517006,26.86893115,189.35,189.32,0.1]
[1760908517210,0.72,189.34,189.32,0.1]
[1760908517698,0.72,189.33,189.32,0.1]
[1760908518997,20.14718948,189.33,189.32,0.1]
[1760908522721,34.47647521,189.33,189.32,0.1]
[1760908522900,22.88,189.33,189.32,0.1]
[1760908523101,22.88,189.33,189.32,61.9]
[1760908523335,0.72,189.35,189.32,0.1]
[1760908523709,28.16097397,189.36,189.32,0.1]
[1760908523919,28.88097397,189.36,189.32,0.1]
[1760908524117,0.72,189.35,189.32,0.1]
[1760908524922,22.88,189.36,189.32,4.07893115]
[1760908525532,22.88,189.36,189.33,0.71]
[1760908525731,22.88,189.36,189.32,3.36893115]
[1760908525931,22.88,189.36,189.33,0.71]
[1760908526107,22.88,189.36,189.32,3.36893115]
[1760908526307,23.6,189.36,189.32,3.36893115]
[1760908526524,23.6,189.36,189.32,4.07893115]
[1760908526828,22.88,189.36,189.33,3.26893115]
[1760908527015,33.75647521,189.39,189.35,3.26893115]
[1760908527216,33.75647521,189.39,189.35,3.97893115]
[1760908527410,10.87647521,189.39,189.35,3.97893115]
[1760908527821,22.88,189.37,189.35,3.97893115]
[1760908528541,22.88,189.37,189.35,3.26893115]
[1760908528719,23.6,189.37,189.33,3.97893115]
[1760908528924,0.72,189.36,189.33,3.26893115]
[1760908529426,0.72,189.36,189.32,70.45092544]
[1760908529626,0.72,189.36,189.32,71.16092544]
[1760908532447,19.42560931,189.39,189.32,71.16092544]
[1760908532748,0.72,189.38,189.32,67.89199429]
[1760908533340,3.98893115,189.38,189.32,67.89199429]
[1760908536741,0.72,189.38,189.32,67.18199429]
[1760908536941,3.98893115,189.38,189.33,0.71]
[1760908537122,0.72,189.38,189.34,0.71]
[1760908537327,0.72,189.38,189.33,5.28174089]
[1760908537942,0.72,189.38,189.34,0.71]
[1760908539947,0.72,189.38,189.33,67.08174089]
[1760908540122,0.72,189.38,189.34,0.71]
[1760908542346,10.87647521,189.41,189.34,9.26029816]
[1760908542531,22.88,189.39,189.35,3.97893115]
[1760908542739,22.88,189.39,189.36,0.71]
[1760908542927,22.88,189.39,189.35,3.26893115]
[1760908543128,22.88,189.39,189.37,0.71]
[1760908543337,22.88,189.39,189.35,3.97893115]
[1760908543542,22.88,189.39,189.36,0.71]
[1760908543745,10.87647521,189.43,189.37,0.71]
[1760908543945,10.87647521,189.43,189.38,3.26893115]
[1760908544132,10.87647521,189.43,189.38,3.94893115]
[1760908544453,11.56647521,189.43,189.38,3.94893115]
[1760908544629,10.87647521,189.43,189.39,3.94893115]
[1760908544835,10.87647521,189.44,189.4,0.68]
[1760908545035,10.87647521,189.44,189.41,0.68]
[1760908545444,5.27763548,189.48,189.41,8.54829513]
[1760908545649,10.87647521,189.46,189.42,0.68]
[1760908545844,10.87647521,189.46,189.41,8.54829513]
[1760908545845,0.69,189.46,189.41,9.22829513]
[1760908546242,0.69,189.46,189.42,0.68]
[1760908546447,0.69,189.46,189.42,3.94893115]
[1760908546841,10.87647521,189.47,189.43,0.68]
[1760908547041,11.56647521,189.47,189.43,0.68]
[1760908547550,11.56647521,189.47,189.42,8.54819816]
[1760908547732,11.56647521,189.47,189.42,9.22819816]
[1760908548233,0.69,189.46,189.42,9.22819816]
[1760908548760,0.69,189.46,189.42,71.02819816]
[1760908549137,0.69,189.46,189.42,67.75926701]
[1760908549743,0.69,189.46,189.42,71.02819816]
[1760908552752,0.69,189.46,189.44,3.26893115]
[1760908553147,10.87647521,189.48,189.44,3.26893115]
[1760908553355,22.88,189.48,189.46,3.26893115]
[1760908553873,22.88,189.48,189.45,65.74893115]
[1760908554051,23.57,189.48,189.45,65.06893115]
[1760908556945,10.87647521,189.45,189.4,61.8]
[1760908557150,14.14540636,189.43,189.37,61.8]
[1760908557358,0.69,189.42,189.37,61.8]
[1760908557557,3.26893115,189.41,189.37,61.8]
[1760908557760,0.69,189.4,189.37,61.8]
[1760908559655,2.09150746,189.41,189.35,61.8]
[1760908559656,2.78150746,189.39,189.35,61.8]
[1760908559969,2.09150746,189.39,189.33,5.28173483]
[1760908560176,2.09150746,189.39,189.34,0.68]
[1760908560361,2.78150746,189.39,189.34,0.68]
[1760908560561,0.69,189.39,189.34,0.68]
[1760908561378,0.69,189.39,189.34,5.96145073]
[1760908561578,2.09150746,189.4,189.32,61.9]
[1760908561579,2.78150746,189.38,189.32,61.9]
[1760908561766,0.69,189.37,189.32,61.9]
[1760908561959,0.69,189.37,189.32,62.58]
[1760908562158,0.69,189.37,189.32,64.67150746]
[1760908562875,0.69,189.36,189.32,67.8619796]
[1760908563276,0.69,189.36,189.32,67.1819796]
[1760908563452,0.69,189.35,189.32,67.1819796]
[1760908563648,7.3720387,189.38,189.32,67.1819796]
[1760908563649,10.87647521,189.37,189.32,67.1819796]
[1760908563854,0.69,189.36,189.32,67.1819796]
[1760908564381,0.69,189.36,189.32,67.8619796]
[1760908564681,10.87647521,189.37,189.32,69.27348706]